[Event "EYTCC U18 Girls 2019"]
[Site "Pardubice"]
[Date "2019.07.12"]
[Round "2.37"]
[White "Cvitan, Ena"]
[Black "Pribylova, Sofie"]
[Result "1-0"]
[ECO "A40"]
[WhiteElo "2202"]
[BlackElo "2093"]
[Annotator "NA"]
[PlyCount "85"]
[EventDate "2019.07.11"]
[EventType "swiss"]
[EventCountry "CZE"]
[SourceTitle "playchess.com"]
[Source "ChessBase"]
[SourceQuality "1"]
[WhiteTeam "Croatia"]
[BlackTeam "Czech Republic"]
[WhiteTeamCountry "CRO"]
[BlackTeamCountry "CZE"]
[TimeControl "40/5400+30:1800+30"]

1. d4 {[%emt 0:00:00]} g6 {[%emt 0:00:00]} 2. c4 {[%emt 0:02:29]} Bg7 {[%emt 0:00:00]} 3. e4 {[%emt 0:01:24]} c5 {[%emt 0:00:09]} 4. d5 {[%emt 0:01:31]} d6 {[%emt 0:00:46]} 5. Nc3 {[%emt 0:02:16]} e6 {[%emt 0:02:55]} 6. Nf3 {[%emt 0:02:24]} Ne7 {[%emt 0:00:41]} 7. h3 {[%emt 0:10:35]} O-O {[%emt 0:03:11]} 8. Bd3 {[%emt 0:02:55]} h6 {[%emt 0:02:53]} 9. O-O {[%emt 0:03:15]} e5 {[%emt 0:06:39]} 10. Nh2 {[%emt 0:08:45]} Nd7 {[%emt 0:13:35]} 11. Ng4 {[%emt 0:05:55]} Kh7 {[%emt 0:05:52]} 12. Ne3 {[%emt 0:01:36]} f5 {[%emt 0:04:17]} 13. exf5 {[%emt 0:00:42]} Nxf5 {[%emt 0:06:52]} 14. Qc2 {[%emt 0:09:46]} Ne7 {[%emt 0:02:06]} 15. Ne4 {[%emt 0:08:25]} Nf6 {[%emt 0:01:40]} 16. Ng3 {[%emt 0:02:09]} Qe8 {[%emt 0:09:34]} 17. a4 {[%emt 0:06:55]} b6 {[%emt 0:02:16]} 18. Bd2 {[%emt 0:00:34]} Nfg8 {[%emt 0:11:50]} 19. a5 {[%emt 0:04:33]} Bb7 {[%emt 0:02:17]} 20. Bc3 {[%emt 0:04:10]} Kh8 {[%emt 0:04:33]} 21. Ra3 {[%emt 0:01:38]} Rb8 {[%emt 0:01:47]} 22. axb6 {[%emt 0:01:24]} axb6 {[%emt 0:00:05]} 23. b4 {[%emt 0:02:45]} h5 {[%emt 0:05:57]} 24. Rb1 {[%emt 0:03:06]} Ra8 {[%emt 0:00:45]} 25. Rab3 {[%emt 0:01:44]} Ba6 {[%emt 0:02:59]} 26. bxc5 {[%emt 0:00:52]} bxc5 {[%emt 0:00:03]} 27. Rb6 {[%emt 0:00:46]} Nf6 {[%emt 0:02:55]} 28. Rxd6 {[%emt 0:01:26]} h4 {[%emt 0:01:45]} 29. Ne4 {[%emt 0:00:14]} Nxe4 {[%emt 0:03:30]} 30. Bxe4 {[%emt 0:00:11]} Rf4 {[%emt 0:02:02]} 31. Re6 {[%emt 0:02:12]} Bc8 {[%emt 0:00:53]} 32. Bxg6 {[%emt 0:02:28]} Qf8 {[%emt 0:00:37]} 33. Rxe5 {[%emt 0:00:56]} Nxg6 {[%emt 0:00:33]} 34. Qxg6 {[%emt 0:01:23]} Ra6 {[%emt 0:00:26]} 35. Qh5+ {[%emt 0:01:55]} Rh6 {[%emt 0:00:29]} 36. Qxh6+ {[%emt 0:00:56]} Bxh6 {[%emt 0:00:04]} 37. Re8+ {[%emt 0:00:34]} Kg8 {[%emt 0:00:57]} 38. Rxf8+ {[%emt 0:00:08]} Rxf8 {[%emt 0:00:13]} 39. Ng4 {[%emt 0:01:02]} Bf4 {[%emt 0:00:41]} 40. Nf6+ {[%emt 0:01:20]} Kf7 {[%emt 0:00:17]} 41. Ne4 {[%emt 0:31:34]} Ba6 {[%emt 0:30:36]} 42. Nxc5 {[%emt 0:01:22]} Bxc4 {[%emt 0:00:00]} 43. Ne6 {[%emt 0:00:00]} 1-0

[Event "EYTCC U18 Girls 2019"]
[Site "Pardubice"]
[Date "2019.07.12"]
[Round "2.38"]
[White "Nemcova, Karin"]
[Black "Bogdanic, Katarina"]
[Result "1-0"]
[ECO "B42"]
[WhiteElo "1956"]
[BlackElo "1955"]
[Annotator "NA"]
[PlyCount "151"]
[EventDate "2019.07.11"]
[EventType "swiss"]
[EventCountry "CZE"]
[SourceTitle "playchess.com"]
[Source "ChessBase"]
[SourceQuality "1"]
[WhiteTeam "Czech Republic"]
[BlackTeam "Croatia"]
[WhiteTeamCountry "CZE"]
[BlackTeamCountry "CRO"]
[TimeControl "40/5400+30:1800+30"]

1. e4 {[%emt 0:00:00]} c5 {[%emt 0:00:00]} 2. Nf3 {[%emt 0:00:00]} e6 {[%emt 0:00:00]} 3. d4 {[%emt 0:00:00]} cxd4 {[%emt 0:00:00]} 4. Nxd4 {[%emt 0:00:00]} a6 {[%emt 0:00:00]} 5. Bd3 {[%emt 0:00:00]} Qc7 {[%emt 0:00:06]} 6. O-O {[%emt 0:00:10]} Nf6 {[%emt 0:00:30]} 7. Qe2 {[%emt 0:00:13]} d6 {[%emt 0:00:46]} 8. c4 {[%emt 0:00:14]} g6 {[%emt 0:00:33]} 9. Nc3 {[%emt 0:00:18]} Bg7 {[%emt 0:00:22]} 10. Nf3 {[%emt 0:00:53]} O-O {[%emt 0:01:02]} 11. h3 {[%emt 0:00:09]} Nc6 {[%emt 0:02:50]} 12. Be3 {[%emt 0:00:24]} Nd7 {[%emt 0:13:18]} 13. Rac1 {[%emt 0:01:09]} Nce5 {[%emt 0:07:38]} 14. b3 {[%emt 0:03:32]} b6 {[%emt 0:02:25]} 15. Bb1 {[%emt 0:01:13]} Bb7 {[%emt 0:02:56]} 16. Nh2 {[%emt 0:05:33]} Nf6 {[%emt 0:04:48]} 17. f4 {[%emt 0:03:11]} Ned7 {[%emt 0:00:16]} 18. Nf3 {[%emt 0:09:05]} Rac8 {[%emt 0:05:19]} 19. Qf2 {[%emt 0:09:13]} Qb8 {[%emt 0:06:50]} 20. Bd4 {[%emt 0:04:02]} Nc5 21. Rfe1 {[%emt 0:01:46]} Qa8 {[%emt 0:13:15]} 22. Nd2 {[%emt 0:01:57]} a5 {[%emt 0:07:24]} 23. e5 {[%emt 0:04:40]} dxe5 {[%emt 0:01:32]} 24. fxe5 {[%emt 0:00:49]} Ne8 {[%emt 0:02:02]} 25. Nde4 {[%emt 0:08:41]} Nxe4 {[%emt 0:06:49]} 26. Bxe4 {[%emt 0:02:45]} f6 {[%emt 0:03:06]} 27. Bxb7 {[%emt 0:02:12]} Qxb7 {[%emt 0:00:01]} 28. Qe3 {[%emt 0:02:33]} fxe5 {[%emt 0:02:19]} 29. Bxe5 {[%emt 0:00:15]} Bxe5 {[%emt 0:03:25]} 30. Qxe5 {[%emt 0:00:13]} Ng7 {[%emt 0:00:06]} 31. Nb5 {[%emt 0:01:19]} Rc5 {[%emt 0:00:50]} 32. Qe3 {[%emt 0:09:16]} Qb8 {[%emt 0:02:55]} 33. Rcd1 {[%emt 0:01:52]} Rd8 {[%emt 0:01:34]} 34. Rd3 {[%emt 0:04:30]} Rxd3 {[%emt 0:03:37]} 35. Qxd3 {[%emt 0:00:12]} Rf5 {[%emt 0:03:59]} 36. Qe3 {[%emt 0:06:16]} Rf6 {[%emt 0:01:40]} 37. Qd4 {[%emt 0:01:31]} Rf4 {[%emt 0:00:56]} 38. Qe3 {[%emt 0:01:51]} Rf6 {[%emt 0:00:41]} 39. Nd4 {[%emt 0:03:26]} Qf8 {[%emt 0:01:40]} 40. Nf3 {[%emt 0:00:46]} Qd6 {[%emt 0:01:07]} 41. Qe5 {[%emt 0:32:42]} Qd8 {[%emt 0:30:33]} 42. Nd4 {[%emt 0:02:43]} Kf7 {[%emt 0:01:01]} 43. Nb5 {[%emt 0:02:36]} Kg8 {[%emt 0:00:00]} 44. Nd6 {[%emt 0:00:00]} Rf8 {[%emt 0:00:00]} 45. Rf1 {[%emt 0:00:00]} Rxf1+ {[%emt 0:00:00]} 46. Kxf1 {[%emt 0:00:00]} Qf8+ {[%emt 0:00:00]} 47. Kg1 {[%emt 0:00:00]} Qd8 {[%emt 0:00:00]} 48. Kh2 {[%emt 0:00:00]} Qc7 {[%emt 0:00:00]} 49. g3 {[%emt 0:00:00]} Qe7 {[%emt 0:00:00]} 50. Ne4 {[%emt 0:00:00]} Qd8 {[%emt 0:00:00]} 51. Qd6 {[%emt 0:00:00]} Qxd6 {[%emt 0:00:00]} 52. Nxd6 {[%emt 0:00:00]} Nf5 {[%emt 0:00:00]} 53. Nc8 {[%emt 0:00:00]} Nd4 {[%emt 0:00:00]} 54. Nxb6 {[%emt 0:00:00]} Kf7 {[%emt 0:00:00]} 55. Kg2 {[%emt 0:00:00]} Ke7 {[%emt 0:00:00]} 56. Kf2 {[%emt 0:00:00]} Kd6 {[%emt 0:00:00]} 57. Na4 {[%emt 0:00:00]} h6 {[%emt 0:00:00]} 58. Nb2 {[%emt 0:00:00]} Ke5 {[%emt 0:00:00]} 59. Nd3+ {[%emt 0:00:00]} Ke4 {[%emt 0:00:00]} 60. Nc5+ {[%emt 0:00:00]} Ke5 {[%emt 0:00:00]} 61. Nb7 {[%emt 0:00:00]} Nc6 {[%emt 0:00:00]} 62. Ke3 {[%emt 0:00:00]} Kf5 {[%emt 0:00:00]} 63. Nd6+ {[%emt 0:00:00]} Kf6 {[%emt 0:00:00]} 64. Ke4 {[%emt 0:00:00]} Ke7 {[%emt 0:00:00]} 65. c5 {[%emt 0:00:15]} Nb4 {[%emt 0:00:00]} 66. Nc4 {[%emt 0:03:10]} Nxa2 {[%emt 0:01:27]} 67. Nxa5 {[%emt 0:00:24]} Nc3+ {[%emt 0:00:04]} 68. Kd3 {[%emt 0:00:22]} Nd5 {[%emt 0:00:11]} 69. Nc4 {[%emt 0:00:30]} Nb4+ {[%emt 0:00:31]} 70. Ke4 {[%emt 0:00:24]} Na6 {[%emt 0:01:24]} 71. Kd4 {[%emt 0:00:13]} Nb4 {[%emt 0:00:22]} 72. Ne5 {[%emt 0:00:37]} Kf6 {[%emt 0:00:46]} 73. c6 {[%emt 0:00:34]} Nd5 {[%emt 0:00:03]} 74. b4 {[%emt 0:00:40]} Nc7 {[%emt 0:00:21]} 75. Ng4+ {[%emt 0:00:37]} Kg5 {[%emt 0:01:16]} 76. Ke4 1-0

[Event "EYTCC U18 Girls 2019"]
[Site "Pardubice"]
[Date "2019.07.12"]
[Round "2.39"]
[White "Ferkova, Dominika"]
[Black "Laurincova, Kristyna"]
[Result "1-0"]
[ECO "D86"]
[WhiteElo "2009"]
[BlackElo "2010"]
[Annotator "NA"]
[PlyCount "77"]
[EventDate "2019.07.11"]
[EventType "swiss"]
[EventCountry "CZE"]
[SourceTitle "playchess.com"]
[Source "ChessBase"]
[SourceQuality "1"]
[WhiteTeam "Slovakia"]
[BlackTeam "Czech Republic"]
[WhiteTeamCountry "SVK"]
[BlackTeamCountry "CZE"]
[TimeControl "40/5400+30:1800+30"]

1. d4 {[%emt 0:00:00]} Nf6 {[%emt 0:00:00]} 2. c4 {[%emt 0:00:00]} g6 {[%emt 0:00:00]} 3. Nc3 {[%emt 0:00:00]} d5 {[%emt 0:00:04]} 4. cxd5 {[%emt 0:00:56]} Nxd5 {[%emt 0:00:08]} 5. e4 {[%emt 0:00:30]} Nxc3 {[%emt 0:00:08]} 6. bxc3 {[%emt 0:00:06]} Bg7 {[%emt 0:00:12]} 7. Bc4 {[%emt 0:01:15]} c5 {[%emt 0:00:30]} 8. Ne2 {[%emt 0:01:48]} O-O {[%emt 0:00:26]} 9. O-O {[%emt 0:00:49]} Nc6 {[%emt 0:00:32]} 10. Be3 {[%emt 0:02:41]} Qc7 {[%emt 0:00:31]} 11. Bb3 {[%emt 0:16:16]} Rd8 {[%emt 0:03:38]} 12. d5 {[%emt 0:19:04]} Na5 {[%emt 0:03:40]} 13. Bf4 {[%emt 0:04:25]} Qd7 {[%emt 0:05:15]} 14. Rb1 {[%emt 0:04:45]} b5 {[%emt 0:09:16]} 15. Bc2 {[%emt 0:21:31]} Bb7 {[%emt 0:16:51]} 16. a4 {[%emt 0:05:14]} a6 {[%emt 0:00:53]} 17. axb5 {[%emt 0:01:08]} axb5 {[%emt 0:00:02]} 18. Be3 {[%emt 0:00:52]} Rac8 {[%emt 0:09:25]} 19. Bd3 {[%emt 0:01:18]} Nc4 {[%emt 0:17:15]} 20. Bxc4 {[%emt 0:00:40]} bxc4 {[%emt 0:00:01]} 21. Rb6 {[%emt 0:01:01]} Bc6 {[%emt 0:07:24]} 22. Qc1 {[%emt 0:10:20]} Ba4 {[%emt 0:01:08]} 23. Qa3 {[%emt 0:00:17]} Qc7 {[%emt 0:04:19]} 24. Ra6 {[%emt 0:01:25]} Bc2 {[%emt 0:02:08]} 25. Ng3 {[%emt 0:01:10]} Qe5 {[%emt 0:01:51]} 26. Bxc5 {[%emt 0:04:17]} Bxe4 {[%emt 0:10:14]} 27. Bxe7 {[%emt 0:00:36]} Bd3 {[%emt 0:04:34]} 28. Bxd8 {[%emt 0:00:31]} Bxf1 {[%emt 0:00:02]} 29. Ra8 {[%emt 0:00:55]} Bd3 {[%emt 0:01:09]} 30. h3 {[%emt 0:00:25]} Bf8 {[%emt 0:02:48]} 31. Qa6 {[%emt 0:00:23]} Rxa8 {[%emt 0:00:13]} 32. Qxa8 {[%emt 0:00:01]} Qxc3 {[%emt 0:00:51]} 33. d6 {[%emt 0:00:49]} Kg7 {[%emt 0:00:25]} 34. d7 {[%emt 0:00:29]} Qe1+ {[%emt 0:00:35]} 35. Kh2 {[%emt 0:00:04]} Qxf2 {[%emt 0:00:26]} 36. Bf6+ {[%emt 0:00:55]} Qxf6 {[%emt 0:00:33]} 37. d8=Q {[%emt 0:00:02]} Qxd8 {[%emt 0:00:31]} 38. Qxd8 {[%emt 0:00:01]} Bc5 {[%emt 0:00:20]} 39. Qd5 {[%emt 0:01:14]} 1-0

[Event "EYTCC U18 Girls 2019"]
[Site "Pardubice"]
[Date "2019.07.12"]
[Round "2.40"]
[White "Lhotska, Anna"]
[Black "Sankova, Stella"]
[Result "1/2-1/2"]
[ECO "B40"]
[WhiteElo "1922"]
[BlackElo "1997"]
[Annotator "NA"]
[PlyCount "86"]
[EventDate "2019.07.11"]
[EventType "swiss"]
[EventCountry "CZE"]
[SourceTitle "playchess.com"]
[Source "ChessBase"]
[SourceQuality "1"]
[WhiteTeam "Czech Republic"]
[BlackTeam "Slovakia"]
[WhiteTeamCountry "CZE"]
[BlackTeamCountry "SVK"]
[TimeControl "40/5400+30:1800+30"]

1. e4 {[%emt 0:00:00]} c5 {[%emt 0:00:00]} 2. Nf3 {[%emt 0:00:00]} e6 {[%emt 0:00:00]} 3. d4 {[%emt 0:00:56]} cxd4 {[%emt 0:00:00]} 4. Nxd4 {[%emt 0:00:08]} Nf6 {[%emt 0:00:00]} 5. Nc3 {[%emt 0:02:23]} Nc6 {[%emt 0:00:00]} 6. Be2 {[%emt 0:03:49]} Bb4 {[%emt 0:00:00]} 7. O-O {[%emt 0:01:28]} Bxc3 {[%emt 0:05:06]} 8. bxc3 {[%emt 0:00:09]} Nxe4 {[%emt 0:00:02]} 9. Bd3 {[%emt 0:00:10]} Nf6 {[%emt 0:09:24]} 10. Nb5 {[%emt 0:14:42]} O-O {[%emt 0:08:04]} 11. Ba3 {[%emt 0:01:34]} Ne7 {[%emt 0:00:11]} 12. Nd6 {[%emt 0:04:35]} Ne8 {[%emt 0:07:14]} 13. Ne4 {[%emt 0:18:44]} d5 {[%emt 0:06:23]} 14. Nd2 {[%emt 0:02:51]} Nf6 {[%emt 0:02:45]} 15. Rb1 {[%emt 0:06:47]} Re8 {[%emt 0:05:51]} 16. c4 {[%emt 0:03:40]} Qc7 {[%emt 0:06:00]} 17. Re1 {[%emt 0:07:16]} b6 {[%emt 0:12:28]} 18. Bb2 {[%emt 0:02:18]} dxc4 {[%emt 0:00:32]} 19. Nxc4 {[%emt 0:01:49]} Ned5 {[%emt 0:02:47]} 20. Be5 {[%emt 0:05:04]} Qe7 {[%emt 0:02:27]} 21. Nd6 {[%emt 0:08:45]} Rd8 {[%emt 0:01:43]} 22. c4 {[%emt 0:01:36]} Nc7 {[%emt 0:01:10]} 23. Re3 {[%emt 0:01:27]} Kf8 {[%emt 0:04:58]} 24. Bxf6 {[%emt 0:02:16]} gxf6 {[%emt 0:00:07]} 25. Nf5 {[%emt 0:00:37]} Qc5 {[%emt 0:01:06]} 26. Qh5 {[%emt 0:01:26]} Rxd3 {[%emt 0:06:05]} 27. Qh6+ {[%emt 0:00:18]} Ke8 {[%emt 0:00:08]} 28. Ng7+ {[%emt 0:00:44]} Ke7 {[%emt 0:00:10]} 29. Rxd3 {[%emt 0:00:09]} Qxc4 {[%emt 0:01:27]} 30. Rbd1 {[%emt 0:01:33]} Nd5 {[%emt 0:01:00]} 31. Nf5+ {[%emt 0:01:29]} exf5 {[%emt 0:01:01]} 32. Rxd5 {[%emt 0:00:17]} Be6 {[%emt 0:00:18]} 33. Qe3 {[%emt 0:01:09]} Kf8 {[%emt 0:01:38]} 34. Qa3+ {[%emt 0:01:30]} Ke8 {[%emt 0:02:25]} 35. R5d2 {[%emt 0:00:43]} a5 {[%emt 0:03:14]} 36. Qf3 {[%emt 0:00:44]} Rc8 {[%emt 0:00:14]} 37. Qg3 {[%emt 0:00:35]} Qc7 {[%emt 0:05:28]} 38. Qg8+ {[%emt 0:00:36]} Ke7 {[%emt 0:00:05]} 39. Qxh7 {[%emt 0:00:05]} Qf4 {[%emt 0:00:45]} 40. Qh3 {[%emt 0:00:21]} Qxd2 {[%emt 0:00:35]} 41. Qf3 {[%emt 0:34:33]} Qc3 {[%emt 0:33:28]} 42. Qb7+ {[%emt 0:00:35]} Qc7 {[%emt 0:00:05]} 43. Qf3 {[%emt 0:00:40]} Qc6 {[%emt 0:04:20]} 1/2-1/2

[Event "EYTCC U18 Girls 2019"]
[Site "Pardubice"]
[Date "2019.07.12"]
[Round "2.41"]
[White "Jaufarally, Nadia"]
[Black "Stroganova, Karina"]
[Result "0-1"]
[ECO "B01"]
[WhiteElo "1944"]
[BlackElo "1875"]
[Annotator "NA"]
[PlyCount "122"]
[EventDate "2019.07.11"]
[EventType "swiss"]
[EventCountry "CZE"]
[SourceTitle "playchess.com"]
[Source "ChessBase"]
[SourceQuality "1"]
[WhiteTeam "England"]
[BlackTeam "Russia"]
[WhiteTeamCountry "ENG"]
[BlackTeamCountry "RUS"]
[TimeControl "40/5400+30:1800+30"]

1. e4 {[%emt 0:00:00]} d5 {[%emt 0:00:00]} 2. exd5 {[%emt 0:00:00]} Qxd5 {[%emt 0:00:00]} 3. Nc3 {[%emt 0:00:00]} Qd8 {[%emt 0:00:00]} 4. d4 {[%emt 0:00:10]} Nf6 {[%emt 0:00:05]} 5. Nf3 {[%emt 0:00:15]} g6 {[%emt 0:00:10]} 6. Be2 {[%emt 0:04:25]} Bg7 {[%emt 0:00:32]} 7. Bf4 {[%emt 0:01:50]} O-O {[%emt 0:01:09]} 8. Qd2 {[%emt 0:04:56]} c5 {[%emt 0:29:37]} 9. dxc5 {[%emt 0:18:17]} Qxd2+ {[%emt 0:00:09]} 10. Nxd2 {[%emt 0:08:49]} Bf5 {[%emt 0:00:51]} 11. O-O-O {[%emt 0:04:50]} Nbd7 {[%emt 0:00:55]} 12. Nb3 {[%emt 0:04:27]} Rac8 {[%emt 0:01:00]} 13. c6 {[%emt 0:16:23]} bxc6 {[%emt 0:10:34]} 14. Ba6 {[%emt 0:04:37]} Rce8 {[%emt 0:01:30]} 15. Nd4 {[%emt 0:09:31]} Bg4 {[%emt 0:14:39]} 16. f3 {[%emt 0:01:01]} e5 {[%emt 0:00:07]} 17. Nxc6 {[%emt 0:03:19]} exf4 {[%emt 0:06:06]} 18. fxg4 {[%emt 0:00:10]} Re6 {[%emt 0:00:19]} 19. Bb5 {[%emt 0:10:16]} a6 {[%emt 0:04:57]} 20. Nd4 {[%emt 0:00:25]} Rb6 {[%emt 0:05:59]} 21. Be2 {[%emt 0:03:06]} Ne5 {[%emt 0:00:40]} 22. h3 {[%emt 0:00:14]} Rfb8 {[%emt 0:00:59]} 23. Nb3 {[%emt 0:01:31]} Bh6 {[%emt 0:01:33]} 24. Kb1 {[%emt 0:00:29]} a5 {[%emt 0:00:21]} 25. a4 {[%emt 0:01:18]} Rb4 {[%emt 0:03:00]} 26. Bb5 {[%emt 0:01:33]} Ne4 {[%emt 0:07:10]} 27. Nxe4 {[%emt 0:00:59]} Rxe4 {[%emt 0:00:07]} 28. Rhe1 {[%emt 0:00:27]} Re3 {[%emt 0:00:32]} 29. Nxa5 {[%emt 0:00:25]} Bf8 {[%emt 0:01:44]} 30. Rxe3 {[%emt 0:00:25]} fxe3 {[%emt 0:00:08]} 31. Nc4 {[%emt 0:00:40]} Nxc4 {[%emt 0:08:36]} 32. Bxc4 {[%emt 0:00:06]} Bb4 {[%emt 0:00:41]} 33. Rd7 {[%emt 0:00:55]} Bc3 {[%emt 0:00:54]} 34. b3 {[%emt 0:00:23]} Re8 {[%emt 0:01:00]} 35. Rxf7 {[%emt 0:00:40]} Kh8 {[%emt 0:00:13]} 36. Be2 {[%emt 0:00:24]} Bb4 {[%emt 0:00:40]} 37. Rf3 {[%emt 0:00:30]} Bc5 {[%emt 0:00:29]} 38. Kb2 {[%emt 0:00:38]} Rd8 {[%emt 0:00:13]} 39. Bd3 {[%emt 0:00:20]} Rxd3 {[%emt 0:00:25]} 40. Rf1 {[%emt 0:00:40]} Rd2 {[%emt 0:00:30]} 41. Re1 {[%emt 0:01:48]} e2 {[%emt 0:00:46]} 42. Kc3 {[%emt 0:01:02]} Be3 {[%emt 0:03:36]} 43. a5 {[%emt 0:03:11]} Bf4 {[%emt 0:00:31]} 44. b4 {[%emt 0:05:56]} Kg8 {[%emt 0:03:27]} 45. b5 {[%emt 0:07:11]} Rd5 {[%emt 0:00:57]} 46. Kc4 {[%emt 0:00:31]} Re5 {[%emt 0:00:22]} 47. a6 {[%emt 0:00:37]} Re4+ {[%emt 0:00:54]} 48. Kb3 {[%emt 0:07:12]} Re3+ {[%emt 0:02:29]} 49. c3 {[%emt 0:00:52]} Bb8 {[%emt 0:02:42]} 50. Kc4 {[%emt 0:03:50]} Ba7 {[%emt 0:00:35]} 51. Kd5 {[%emt 0:02:41]} Re8 {[%emt 0:00:54]} 52. Kc6 {[%emt 0:01:08]} Bf2 {[%emt 0:00:46]} 53. Rxe2 {[%emt 0:00:34]} Rxe2 {[%emt 0:00:10]} 54. c4 {[%emt 0:00:28]} Re4 {[%emt 0:01:25]} 55. c5 {[%emt 0:00:24]} Rc4 {[%emt 0:00:31]} 56. a7 {[%emt 0:00:33]} Rxc5+ {[%emt 0:00:10]} 57. Kd7 {[%emt 0:00:35]} Rd5+ {[%emt 0:00:17]} 58. Kc6 {[%emt 0:00:16]} Rd8 {[%emt 0:01:46]} 59. b6 {[%emt 0:00:11]} Kf7 {[%emt 0:00:54]} 60. Kb7 {[%emt 0:00:23]} Kf6 {[%emt 0:00:14]} 61. Kc7 {[%emt 0:01:00]} Rf8 {[%emt 0:00:15]} 0-1

[Event "EYTCC U18 Girls 2019"]
[Site "Pardubice"]
[Date "2019.07.12"]
[Round "2.42"]
[White "Beliakova, Ilona"]
[Black "Rahulan, Thivyaa"]
[Result "1-0"]
[ECO "A80"]
[WhiteElo "1759"]
[BlackElo "1878"]
[Annotator "NA"]
[PlyCount "55"]
[EventDate "2019.07.11"]
[EventType "swiss"]
[EventCountry "CZE"]
[SourceTitle "playchess.com"]
[Source "ChessBase"]
[SourceQuality "1"]
[WhiteTeam "Russia"]
[BlackTeam "England"]
[WhiteTeamCountry "RUS"]
[BlackTeamCountry "ENG"]
[TimeControl "40/5400+30:1800+30"]

1. d4 {[%emt 0:00:00]} f5 {[%emt 0:00:00]} 2. Nf3 {[%emt 0:00:00]} Nf6 {[%emt 0:00:00]} 3. Bf4 {[%emt 0:00:04]} g6 {[%emt 0:00:29]} 4. e3 {[%emt 0:00:11]} Bg7 {[%emt 0:00:28]} 5. Bc4 {[%emt 0:00:09]} e6 {[%emt 0:01:55]} 6. h3 {[%emt 0:05:07]} O-O {[%emt 0:06:26]} 7. Nc3 {[%emt 0:07:37]} a6 {[%emt 0:06:15]} 8. d5 {[%emt 0:07:16]} d6 {[%emt 0:25:29]} 9. dxe6 {[%emt 0:03:35]} Qe7 {[%emt 0:00:15]} 10. Nd4 {[%emt 0:07:34]} Nc6 {[%emt 0:04:04]} 11. Bg5 {[%emt 0:09:48]} Kh8 {[%emt 0:07:27]} 12. Nd5 {[%emt 0:03:28]} Qe8 {[%emt 0:11:01]} 13. Nxc7 {[%emt 0:00:53]} Qd8 {[%emt 0:00:13]} 14. Nxa8 {[%emt 0:01:23]} d5 {[%emt 0:01:00]} 15. Bb3 {[%emt 0:02:23]} Nxd4 {[%emt 0:04:49]} 16. Qxd4 {[%emt 0:02:07]} Qa5+ {[%emt 0:02:00]} 17. c3 {[%emt 0:01:26]} Ne4 {[%emt 0:01:55]} 18. e7 {[%emt 0:03:33]} Re8 {[%emt 0:02:20]} 19. Qa4 {[%emt 0:01:33]} Bxc3+ {[%emt 0:08:54]} 20. Ke2 {[%emt 0:01:05]} b5 {[%emt 0:01:02]} 21. Qxa5 {[%emt 0:00:12]} Bxa5 {[%emt 0:00:12]} 22. Bh4 {[%emt 0:06:02]} Bb7 {[%emt 0:00:48]} 23. Rhd1 {[%emt 0:01:32]} Bxa8 {[%emt 0:01:03]} 24. Bxd5 {[%emt 0:01:43]} Bxd5 {[%emt 0:00:21]} 25. Rxd5 {[%emt 0:00:09]} g5 {[%emt 0:00:42]} 26. Rxf5 {[%emt 0:00:53]} Rxe7 {[%emt 0:03:48]} 27. Bxg5 {[%emt 0:00:26]} Nxg5 {[%emt 0:00:29]} 28. Rxg5 {[%emt 0:00:07]} 1-0

[Event "EYTCC U18 Girls 2019"]
[Site "Pardubice"]
[Date "2019.07.13"]
[Round "3.25"]
[White "Muetsch, Annmarie"]
[Black "Salimova, Nurgyul"]
[Result "0-1"]
[ECO "B01"]
[WhiteElo "2266"]
[BlackElo "2416"]
[Annotator "NA"]
[PlyCount "92"]
[EventDate "2019.07.11"]
[EventType "swiss"]
[EventCountry "CZE"]
[SourceTitle "playchess.com"]
[Source "ChessBase"]
[SourceQuality "1"]
[WhiteTeam "Germany"]
[BlackTeam "Bulgaria"]
[WhiteTeamCountry "GER"]
[BlackTeamCountry "BUL"]
[TimeControl "40/5400+30:1800+30"]

1. e4 {[%emt 0:00:00]} d5 {[%emt 0:00:00]} 2. exd5 {[%emt 0:00:00]} Qxd5 {[%emt 0:00:00]} 3. Nc3 {[%emt 0:00:00]} Qd6 {[%emt 0:00:00]} 4. d4 {[%emt 0:00:01]} Nf6 {[%emt 0:00:02]} 5. Nf3 {[%emt 0:00:26]} g6 {[%emt 0:00:20]} 6. Nb5 {[%emt 0:05:10]} Qb6 {[%emt 0:00:43]} 7. c4 {[%emt 0:01:58]} c6 {[%emt 0:01:56]} 8. Nc3 {[%emt 0:01:16]} Bg7 {[%emt 0:00:26]} 9. h3 {[%emt 0:04:05]} O-O {[%emt 0:02:31]} 10. Bd3 {[%emt 0:08:22]} Na6 {[%emt 0:19:31]} 11. O-O {[%emt 0:09:42]} c5 {[%emt 0:06:46]} 12. dxc5 {[%emt 0:08:08]} Nxc5 {[%emt 0:02:45]} 13. Na4 {[%emt 0:03:04]} Nxa4 {[%emt 0:00:26]} 14. Qxa4 {[%emt 0:00:05]} Rd8 {[%emt 0:09:08]} 15. Bc2 {[%emt 0:10:56]} Bd7 {[%emt 0:00:56]} 16. Qa3 {[%emt 0:00:40]} Be6 {[%emt 0:13:01]} 17. Be3 {[%emt 0:15:10]} Qc7 {[%emt 0:01:00]} 18. Rac1 {[%emt 0:00:35]} h6 {[%emt 0:26:45]} 19. b3 {[%emt 0:04:54]} Nh5 {[%emt 0:02:06]} 20. Qc5 {[%emt 0:04:35]} Qxc5 {[%emt 0:00:07]} 21. Bxc5 {[%emt 0:00:04]} Nf4 {[%emt 0:00:30]} 22. Rcd1 {[%emt 0:01:48]} Bf6 {[%emt 0:00:46]} 23. Kh1 {[%emt 0:03:42]} b6 {[%emt 0:04:40]} 24. Be3 {[%emt 0:03:12]} g5 {[%emt 0:00:04]} 25. Be4 {[%emt 0:00:41]} Rac8 {[%emt 0:00:37]} 26. Nd4 {[%emt 0:01:48]} Bxd4 {[%emt 0:00:27]} 27. Bxd4 {[%emt 0:00:52]} Bxc4 {[%emt 0:01:34]} 28. Bxb6 {[%emt 0:08:01]} Rxd1 {[%emt 0:00:51]} 29. Rxd1 {[%emt 0:00:05]} axb6 {[%emt 0:00:19]} 30. bxc4 {[%emt 0:00:07]} Rxc4 {[%emt 0:00:05]} 31. Bf3 {[%emt 0:02:03]} Rc2 {[%emt 0:00:30]} 32. a4 {[%emt 0:01:53]} Rc4 {[%emt 0:03:03]} 33. Rb1 {[%emt 0:01:20]} Rxa4 {[%emt 0:00:04]} 34. Rxb6 {[%emt 0:00:05]} Kg7 {[%emt 0:00:14]} 35. Kh2 {[%emt 0:00:36]} Ra2 {[%emt 0:00:55]} 36. Kg3 {[%emt 0:01:34]} Ng6 {[%emt 0:01:45]} 37. Rb7 {[%emt 0:00:47]} Nh4 {[%emt 0:00:48]} 38. Bd5 {[%emt 0:00:33]} Rd2 {[%emt 0:00:57]} 39. Be4 {[%emt 0:00:25]} f5 {[%emt 0:00:49]} 40. Bc6 {[%emt 0:00:39]} Kf6 {[%emt 0:00:53]} 41. f4 {[%emt 0:04:22]} Rd3+ {[%emt 0:02:08]} 42. Bf3 {[%emt 0:01:55]} Nxf3 {[%emt 0:01:34]} 43. gxf3 {[%emt 0:00:22]} gxf4+ {[%emt 0:00:09]} 44. Kxf4 {[%emt 0:00:35]} e5+ {[%emt 0:00:07]} 45. Kg3 e4 {[%emt 0:00:12]} 46. Rb6+ {[%emt 0:01:06]} Kg5 0-1